bitfinex-derivatives/quotes_SOLF0:USTF0_20250127
["timestamp","ask_amount","ask_price","bid_price","bid_amount"]
[1737972532725,23.01297636,225.8,225.66,1.3226]
[1737972533130,0.03103766,225.75,225.66,1.3226]
[1737972534130,0.03103766,225.75,225.7,4.4325]
[1737972534330,0.03103766,225.75,225.66,1.3226]
[1737972537336,0.03103766,225.75,225.71,4.4322]
[1737972538132,0.03103766,225.75,225.72,4.4322]
[1737972538631,0.03103766,225.75,225.71,4.4324]
[1737972539027,0.03103766,225.75,225.66,1.3226]
[1737972539835,0.03103766,225.75,225.74,4.4318]
[1737972540038,0.03103766,225.75,225.66,1.3226]
[1737972540639,4.4325,225.71,225.64,1.3748]
[1737972540839,0.03103766,225.75,225.64,1.3748]
[1737972541030,23.01297636,225.76,225.58,1.3905]
[1737972541233,23.04605328,225.72,225.58,1.3905]
[1737972541635,23.01297636,225.72,225.58,1.3905]
[1737972541937,4.091e-05,225.67,225.6,23.01297636]
[1737972542139,4.091e-05,225.67,225.61,0.77042881]
[1737972542439,36.0,225.82,225.64,23.01297636]
[1737972542632,36.0,225.82,225.65,2.7361]
[1737972542832,4.4306,225.81,225.76,4.4314]
[1737972543029,0.0329392,225.76,225.71,0.0298472]
[1737972543234,4.4308,225.8,225.74,4.4316]
[1737972543435,0.03262389,225.76,225.71,0.02875149]
[1737972544441,0.03262389,225.76,225.71,4.46105149]
[1737972544740,0.03262389,225.76,225.71,0.02875149]
[1737972545236,36.0,225.9,225.71,0.02875149]
[1737972545440,36.0,225.9,225.72,23.01297636]
[1737972545631,2.712,225.95,225.76,23.01297636]
[1737972545837,2.712,225.95,225.73,1.3564]
[1737972545838,2.712,225.95,225.8,23.01297636]
[1737972546237,1.3316,225.95,225.8,23.01297636]
[1737972546433,0.03290417,225.9,225.85,0.02918891]
[1737972546934,0.03290417,225.9,225.88,4.429]
[1737972547939,1.4622,226.03,225.96,4.4274]
[1737972548442,4.4268,226.0,225.9,4.4286]
[1737972548639,4.4268,226.0,225.86,1.3564]
[1737972549142,0.03101035,225.95,225.91,0.03398512]
[1737972550641,4.4281,225.93,225.91,0.03398512]
[1737972550936,1.39511035,225.95,225.91,0.03398512]
[1737972551938,23.01297636,225.92,225.78,1.4198]
[1737972552133,1.39511035,225.95,225.78,1.4198]
[1737972552336,1.3641,225.95,225.9,4.4286]
[1737972552542,23.01297636,226.0,225.79,23.01297636]
[1737972552741,23.01297636,226.0,225.8,0.76826535]
[1737972552942,4.4276,225.96,225.79,23.01297636]
[1737972553145,0.03284568,225.92,225.88,0.03074388]
[1737972554238,0.03284568,225.92,225.89,4.4288]
[1737972554540,0.03284568,225.92,225.88,0.03074388]
[1737972555645,0.03284568,225.92,225.9,4.4286]
[1737972556446,0.03284568,225.92,225.91,4.4285]
[1737972557748,23.01297636,226.08,225.97,4.4272]
[1737972557947,1.4379,226.07,225.89,2.8252]
[1737972558150,4.4259,226.04,225.89,2.8252]
[1737972558448,1.4379,226.07,225.89,2.8252]
[1737972558944,0.03042883,226.0,225.99,4.4267]
[1737972559150,0.03042883,226.0,225.96,0.02863819]
[1737972559450,0.03353855,226.0,225.96,4.45536933]
[1737972559848,0.03353855,226.0,225.96,0.02806933]
[1737972560949,0.03353855,226.0,225.97,4.4273]
[1737972561943,0.03353855,226.0,225.97,4.38287999]
[1737972562143,0.03353855,226.0,225.99,4.4269]
[1737972563653,1.3886,226.14,226.06,4.4255]
[1737972563943,1.3344,226.15,225.99,23.01297636]
[1737972564148,37.3827,226.21,226.0,2.8581]
[1737972564347,37.3827,226.21,226.04,23.01297636]
[1737972564652,4.423,226.19,226.12,4.4243]
[1737972564842,0.03339362,226.15,226.1,0.03102803]
[1737972566848,4.4244,226.12,226.1,0.03102803]
[1737972568045,23.01297636,226.12,226.0,5.8222]
[1737972568247,4.4252,226.08,226.0,4.4267]
[1737972568949,4.4252,226.08,225.96,3.04]
[1737972569150,4.4252,226.08,226.01,4.4265]
[1737972569352,0.0338277,226.04,226.01,4.4265]
[1737972570346,0.0338277,226.04,226.0,0.03244053]
[1737972570651,0.0338277,226.04,226.02,4.4263]
[1737972571851,0.0338277,226.04,226.03,4.4261]
[1737972572753,4.4245,226.12,226.06,4.4254]
[1737972573346,1.3206,226.14,226.06,4.4254]
[1737972573551,4.4246,226.11,226.07,4.4253]
[1737972573853,4.45761941,226.11,226.07,0.03010193]
[1737972574257,0.03301941,226.11,226.07,0.03010193]
[1737972575356,4.4251,226.08,226.07,0.03010193]
[1737972576656,4.4251,226.08,225.94,1.4093]
[1737972576657,1.48871941,226.11,225.94,1.4093]
[1737972576954,1.4557,226.11,226.01,4.4264]
[1737972577252,1.4557,226.11,225.94,1.4093]
[1737972577652,0.02942739,226.05,226.0,0.03201347]
[1737972578254,36.0,226.13,226.0,23.04498983]
[1737972578455,1.4557,226.19,226.01,3.04]
[1737972578650,5.8789,226.19,226.12,4.4243]
[1737972579254,4.4234,226.17,226.01,3.04]
[1737972579456,4.4234,226.17,226.13,0.03314888]
[1737972579649,4.4234,226.17,226.01,3.04]
[1737972579847,0.03233943,226.17,226.13,0.03305621]
[1737972580051,1.3912,226.23,226.05,2.7287]
[1737972580245,0.03126936,226.17,226.13,0.03105283]
[1737972581162,4.424,226.14,226.13,0.03105283]
[1737972581355,23.01297636,226.14,225.93,3.04]
[1737972581655,23.01297636,226.14,225.97,1.3224]
[1737972581849,4.4248,226.1,226.03,4.426]
[1737972582052,23.01297636,226.13,225.97,1.3224]
[1737972582249,4.4257,226.05,225.98,4.4269]
[1737972582444,0.03083849,226.07,226.03,0.03201677]
[1737972582950,4.4257,226.05,226.03,0.03201677]
[1737972583151,0.03083849,226.07,226.03,0.03201677]
[1737972583450,0.03083849,226.07,226.03,4.45811677]
[1737972583645,0.03083849,226.07,226.03,0.03201677]
[1737972585057,0.03083849,226.07,226.04,4.4259]
[1737972586557,0.03083849,226.07,226.06,4.4255]
[1737972587358,0.03083849,226.07,226.04,4.4259]
[1737972587559,0.03083849,226.07,226.03,0.03201677]
[1737972587760,4.4256,226.06,226.03,0.03201677]
[1737972587958,0.03083849,226.07,226.03,0.03201677]
[1737972588759,4.4257,226.05,226.03,0.03201677]
[1737972589862,0.03083849,226.07,226.06,4.4255]
[1737972590258,42.105423,226.17,226.03,0.03201677]
[1737972590556,6.105423,226.17,226.03,3.04]
[1737972590761,6.105423,226.17,226.04,1.346]
[1737972591055,23.01297636,226.18,226.03,3.04]
[1737972591260,23.01297636,226.18,225.96,24.34337636]
[1737972591461,0.02806223,226.13,226.08,0.02976842]
[1737972592661,0.02806223,226.13,226.09,4.4248]
[1737972594963,0.02806223,226.13,226.08,4.45486842]
[1737972595656,0.02806223,226.13,226.08,0.02976842]
[1737972597656,60.421692,226.22,226.08,23.04274478]
[1737972597864,24.421692,226.22,226.09,4.1409]
[1737972598665,24.421692,226.22,226.2,4.4226]
[1737972598861,24.421692,226.22,226.13,0.03148773]
[1737972598862,0.0296207,226.18,226.13,0.03148773]
[1737972599064,24.421692,226.22,226.12,23.01297636]
[1737972599767,24.421692,226.22,226.21,4.4226]
[1737972600364,48.87145687,226.24,226.23,4.4222]
[1737972600565,0.11155247,226.24,226.23,4.4222]
[1737972600966,0.11155247,226.24,226.19,3.07396832]
[1737972601568,0.11155247,226.24,226.21,4.4225]
[1737972601970,0.02807287,226.24,226.19,3.07396832]
[1737972602269,59.01297636,226.4,226.2,23.01297636]
[1737972602463,36.0,226.39,226.19,3.04]
[1737972602667,4.4216,226.26,226.19,3.04]
[1737972602862,23.01297636,226.32,226.19,3.04]
[1737972603169,23.01297636,226.32,226.14,4.4239]
[1737972603170,4.4213,226.28,226.14,4.4239]
[1737972603371,0.03056443,226.28,226.23,0.03078599]
[1737972603565,4.0715,226.31,226.1,3.04]
[1737972603765,23.01297636,226.27,226.1,3.04]
[1737972603961,23.01297636,226.23,226.1,3.04]
[1737972604161,23.01297636,226.28,226.1,3.04]
[1737972604577,4.4225,226.22,226.14,4.4239]
[1737972604772,0.03112737,226.21,226.17,0.02903931]
[1737972605669,4.4231,226.19,226.17,0.02903931]
[1737972607173,4.4234,226.17,226.1,7.4646]
[1737972607373,1.3869,226.2,226.1,3.04]
[1737972607872,1.3869,226.2,226.03,0.0588]
[1737972608375,0.03335988,226.14,226.09,0.03385392]
[1737972608577,0.03335988,226.14,226.09,4.45875392]
[1737972608870,0.03335988,226.14,226.09,0.03385392]
[1737972609376,4.4244,226.12,226.09,0.03385392]
[1737972610065,0.03335988,226.14,226.09,0.03385392]
[1737972610772,0.03335988,226.14,225.95,0.0588]
[1737972610977,0.03335988,226.14,225.92,205.8613712]
[1737972611174,23.01297636,226.11,225.92,205.8613712]
[1737972611372,1.4051,226.1,225.92,205.8613712]
[1737972611872,0.02827339,226.03,225.99,0.02894367]
[1737972612676,0.02827339,226.03,226.01,4.4265]
[1737972613281,0.02827339,226.03,226.02,4.4263]
[1737972613777,0.02827339,226.03,226.0,4.4266]
[1737972613979,0.02827339,226.03,225.99,0.02894367]
[1737972614670,0.02827339,226.03,225.88,9.92829803]
[1737972614878,23.01297636,225.97,225.88,9.92829803]
[1737972615075,1.3384,225.96,225.88,9.92829803]
[1737972615378,23.01297636,225.93,225.78,3.34349803]
[1737972615574,4.429,225.88,225.78,3.34349803]
[1737972615781,23.01297636,225.89,225.78,3.34349803]
[1737972615976,23.01297636,225.89,225.85,0.03325311]
[1737972616175,4.4294,225.86,225.85,5.311e-05]
[1737972617885,4.4292,225.88,225.85,5.311e-05]
[1737972620782,4.4293,225.87,225.85,5.311e-05]
[1737972620992,36.0,225.88,225.73,1.4197]
[1737972621184,23.01297636,225.84,225.73,1.4197]
[1737972622083,0.03127785,225.81,225.76,0.02877482]
[1737972622685,0.03127785,225.81,225.79,4.4307]
[1737972624187,24.35137636,225.96,225.76,3.06877482]
[1737972624383,24.35137636,225.96,225.76,3.04]
[1737972624790,4.4285,225.91,225.84,4.4297]
[1737972624994,23.01297636,225.92,225.76,3.04]
[1737972625594,0.0291029,225.86,225.82,0.02905742]
[1737972627091,4.4586029,225.86,225.82,0.02905742]
[1737972628798,4.4586029,225.86,225.73,1.4197]
[1737972629398,0.0291029,225.86,225.73,1.4197]
[1737972629994,0.0291029,225.86,225.77,0.02880768]
[1737972630498,0.0291029,225.86,225.84,4.4297]
[1737972630798,0.0291029,225.86,225.74,23.01297636]
[1737972630994,4.4296,225.85,225.83,0.02856973]
[1737972631298,4.4296,225.85,225.73,1.4197]
[1737972631493,23.01297636,225.92,225.73,1.4197]
[1737972631494,23.01297636,225.92,225.82,0.03146927]
[1737972631693,0.03220192,225.81,225.76,4.4313]
[1737972631992,23.01297636,225.88,225.76,0.03395544]
[1737972632200,4.4308,225.79,225.76,0.03395544]
[1737972632399,0.03296116,225.81,225.76,0.03395544]
[1737972633601,4.431,225.79,225.76,0.03395544]
[1737972634400,0.03296116,225.81,225.76,0.03395544]
[1737972634895,4.46346116,225.81,225.76,0.03395544]
[1737972635097,0.03296116,225.81,225.76,0.03395544]
[1737972636105,4.4308,225.8,225.76,0.03395544]
[1737972636802,4.4308,225.79,225.76,0.03395544]
[1737972640206,4.4312,225.77,225.76,0.03395544]
[1737972641008,59.01297636,225.8,225.62,243.79785979]
[1737972641302,23.01297636,225.78,225.62,243.79785979]
[1737972641505,23.01297636,225.78,225.69,4.4326]
[1737972642203,4.4318,225.74,225.71,0.02841919]
[1737972644913,23.01297636,225.74,225.59,2.8011]
[1737972646207,0.02946411,225.69,225.59,2.8011]
[1737972646403,0.02946411,225.69,225.59,25.81407636]
[1737972646601,0.02946411,225.69,225.67,4.4331]
[1737972649416,0.02946411,225.69,225.68,4.433]
[1737972650521,0.02946411,225.69,225.59,25.81407636]
[1737972652013,0.02946411,225.69,225.68,4.433]
[1737972657222,0.02946411,225.69,225.66,4.4332]
[1737972657422,0.02946411,225.69,225.61,14.39193863]
[1737972657920,0.02946411,225.69,225.67,4.4331]
[1737972660519,0.02946411,225.69,225.59,2.8011]
[1737972660923,14.39193863,225.68,225.59,2.8011]
[1737972661317,4.4337,225.65,225.59,7.2358]
[1737972661716,0.02823173,225.64,225.59,2.8011]
[1737972661919,4.46203173,225.64,225.57,4.435]
[1737972662121,4.46203173,225.64,225.52,14.39193863]
[1737972662122,0.02823173,225.64,225.53,2.7616]
[1737972662317,0.02823173,225.64,225.59,14.39193863]
[1737972662520,36.0,225.79,225.62,14.39193863]
[1737972662718,36.0,225.79,225.65,14.39193863]
[1737972662919,4.4301,225.83,225.77,4.4311]
[1737972663124,36.0,225.87,225.72,14.39193863]
[1737972663325,36.0,225.87,225.75,14.39193863]
[1737972663516,36.0,225.87,225.76,1.3307]
[1737972663719,0.02863253,225.83,225.79,0.03213672]
[1737972663924,14.42057116,225.83,225.79,0.03213672]
[1737972664327,14.39193863,225.8,225.79,0.03213672]
[1737972664519,0.02863253,225.83,225.79,0.03213672]
[1737972664925,4.4304,225.81,225.79,0.03213672]
[1737972665521,23.01495062,225.82,225.64,23.01495062]
[1737972665826,23.01495062,225.82,225.65,2.8429]
[1737972666327,23.01495062,225.82,225.69,4.4328]
[1737972666724,0.03356356,225.78,225.65,2.8429]
[1737972666925,4.4318,225.74,225.66,4.4332]
[1737972667518,0.03323389,225.72,225.65,2.8429]
[1737972667719,0.03323389,225.72,225.58,3.04]
[1737972667923,36.0,225.8,225.64,23.01495062]
[1737972668124,4.4302,225.83,225.74,4.4317]
[1737972668320,38.6843,225.89,225.69,4.2169]
[1737972668521,0.03004104,225.81,225.69,4.2169]
[1737972668727,0.03004104,225.81,225.72,4.4321]
[1737972668927,0.03004104,225.81,225.69,4.2169]
[1737972672130,4.4309,225.79,225.72,4.4321]
[1737972672828,4.46064104,225.81,225.73,4.432]
[1737972673029,23.01495062,225.86,225.73,4.432]
[1737972673227,0.03281663,225.79,225.69,4.2169]
[1737972674230,4.431,225.78,225.71,4.4324]
[1737972674630,0.03281663,225.79,225.69,4.2169]
[1737972674827,23.01495062,225.78,225.59,23.01495062]
[1737972675033,23.01495062,225.78,225.6,5.25767154]
[1737972675226,0.03289961,225.71,225.6,4.4901]
[1737972676431,0.03289961,225.71,225.6,1.4501]
[1737972676930,4.4334,225.66,225.6,4.4344]
[1737972677337,0.0299641,225.65,225.6,4.4344]
[1737972678435,0.0299641,225.65,225.58,4.4348]
[1737972678927,0.0299641,225.65,225.55,1.4144]
[1737972679131,0.0299641,225.65,225.56,4.4352]
[1737972679433,0.0299641,225.65,225.55,1.4144]
[1737972679632,0.0299641,225.65,225.58,4.4349]
[1737972679827,0.0299641,225.65,225.55,24.42935062]
[1737972680029,0.0299641,225.65,225.64,4.4338]
[1737972680928,212.0,225.81,225.55,24.42935062]
[1737972680929,3.04,225.86,225.6,3.04]
[1737972681137,23.01495062,225.86,225.63,23.01495062]
[1737972681336,4.4301,225.83,225.67,23.01495062]
[1737972681538,36.0,225.89,225.68,1.3575]
[1737972682034,0.03324731,225.81,225.79,4.4307]
[1737972682237,59.01495062,225.96,225.76,0.03032218]
[1737972682540,4.4289,225.89,225.81,4.4304]
[1737972683434,0.0314272,225.87,225.83,0.02912333]
[1737972683936,23.01495062,226.0,225.83,0.02912333]
[1737972684137,40.4263,226.02,225.92,4.4281]
[1737972684339,40.4263,226.02,225.84,3.04]
[1737972684340,36.0,226.02,225.84,3.04]
[1737972684537,24.35015062,226.04,225.84,3.04]
[1737972685141,0.02853427,225.96,225.92,0.02846456]
[1737972685645,23.04348489,225.96,225.92,6.456e-05]
[1737972685939,23.04348489,225.96,225.8,1.3191]
[1737972686238,23.01495062,225.92,225.77,3.04]
[1737972687034,0.03260759,225.87,225.82,0.03311579]
[1737972689444,23.01495062,226.0,225.82,0.03311579]
[1737972689644,23.01495062,226.0,225.79,25.86735062]
[1737972690047,4.4273,225.97,225.79,25.86735062]
[1737972690343,23.01495062,226.0,225.8,0.76573542]
[1737972690546,0.02940087,225.9,225.86,4.46017297]
[1737972690947,23.01495062,226.0,225.86,4.4294]
[1737972691247,23.01495062,226.0,225.89,4.4287]
[1737972691446,0.03178572,225.95,225.91,0.03070238]
[1737972693442,4.4281,225.93,225.91,0.03070238]
[1737972694450,4.45958572,225.95,225.91,0.03070238]
[1737972694950,0.03178572,225.95,225.91,0.03070238]
[1737972695549,0.03178572,225.95,225.93,4.428]
[1737972696753,0.03178572,225.95,225.94,4.4279]
[1737972696956,0.03178572,225.95,225.91,0.03070238]
[1737972698654,23.01495062,225.94,225.91,0.03070238]
[1737972699354,4.4283,225.92,225.91,0.03070238]
[1737972700259,4.4283,225.92,225.79,2.8524]
[1737972700260,4.4289,225.89,225.79,2.8524]
[1737972700456,23.01495062,225.94,225.79,2.8524]
[1737972701554,4.4285,225.91,225.84,4.4297]
[1737972701748,0.0338072,225.89,225.84,0.02980669]
[1737972702053,4.4291,225.88,225.84,0.02980669]
[1737972702458,0.0338072,225.89,225.84,0.02980669]
[1737972702866,0.0338072,225.89,225.84,4.45960669]
[1737972703359,0.0338072,225.89,225.86,4.4294]
[1737972703558,0.0338072,225.89,225.84,0.02980669]
[1737972703958,0.0338072,225.89,225.86,4.4293]
[1737972704257,0.0338072,225.89,225.84,0.02980669]
[1737972704458,0.0338072,225.89,225.86,4.4294]
[1737972705154,0.0338072,225.89,225.88,4.429]
[1737972705353,36.0,226.01,225.84,0.02980669]
[1737972705560,36.0,226.01,225.83,23.01495062]
[1737972706361,36.0,226.01,225.79,25.86735062]
[1737972706552,0.02937453,225.94,225.9,0.03234432]
[1737972707157,4.4281,225.93,225.9,0.03234432]
[1737972707557,0.02937453,225.94,225.9,0.03234432]
[1737972707962,4.45727453,225.94,225.9,0.03234432]
[1737972708366,0.02937453,225.94,225.9,0.03234432]
[1737972709257,0.02937453,225.94,225.9,4.46094432]
[1737972709464,0.02937453,225.94,225.9,0.03234432]
[1737972709864,0.02937453,225.94,225.93,4.4281]
[1737972710066,4.4269,225.99,225.91,1.4112]
[1737972710264,37.3263,226.07,225.91,1.4112]
[1737972710460,37.3263,226.07,225.94,4.4278]
[1737972710762,4.4265,226.02,225.91,1.4112]
[1737972710962,37.3263,226.07,225.91,1.4112]
[1737972711163,0.02812162,225.99,225.96,4.4274]
[1737972711363,37.3263,226.07,225.91,1.4112]
[1737972711867,0.02947263,226.0,225.95,0.02890468]
[1737972712366,4.4269,225.99,225.95,0.02890468]
[1737972712963,0.02947263,226.0,225.95,4.45650468]
[1737972713162,0.02947263,226.0,225.95,0.02890468]
[1737972713559,0.02947263,226.0,225.98,4.4271]
[1737972715464,0.02947263,226.0,225.95,0.02890468]
[1737972716365,4.4269,225.99,225.95,0.02890468]
[1737972717067,4.4275,225.96,225.95,0.02890468]
[1737972717268,23.01495062,225.98,225.82,1.3594]
[1737972717762,4.4283,225.92,225.86,4.4293]
[1737972718563,0.0333043,225.91,225.87,0.03265698]
[1737972719468,0.0333043,225.91,225.88,4.4289]
[1737972719864,0.0333043,225.91,225.87,0.03265698]
[1737972720070,0.0333043,225.91,225.9,4.4287]
[1737972720569,0.0333043,225.91,225.87,0.03265698]
[1737972720765,23.01495062,225.9,225.87,5.698e-05]
[1737972720972,23.01495062,225.9,225.74,2.9134]
[1737972721169,37.3368,225.89,225.75,4.4314]
[1737972721374,37.3368,225.89,225.74,2.9134]
[1737972721572,36.0,225.89,225.76,23.01495062]
[1737972721872,23.01495062,225.98,225.8,23.01495062]
[1737972722064,0.03259961,225.85,225.8,23.04869569]
[1737972722377,23.01495062,225.98,225.76,23.01495062]
[1737972722769,23.01495062,225.98,225.84,4.4298]
[1737972723071,23.01495062,225.98,225.76,23.01495062]
[1737972723276,23.01495062,225.98,225.77,0.76521189]
[1737972723463,0.03305405,225.89,225.85,0.03410694]
[1737972723665,23.01495062,225.94,225.85,0.03410694]
[1737972723863,0.03234937,225.89,225.74,2.9134]
[1737972724071,4.4297,225.85,225.77,4.4312]
[1737972724274,0.03222827,225.84,225.79,0.02871334]
[1737972724669,4.4304,225.82,225.79,0.02871334]
[1737972724870,0.03222827,225.84,225.79,0.02871334]
[1737972726079,4.46222827,225.84,225.79,0.02871334]
[1737972726779,0.03222827,225.84,225.79,0.02871334]
[1737972726974,23.01495062,225.82,225.64,23.01495062]
[1737972727176,23.01495062,225.82,225.63,3.04]
[1737972727571,4.4316,225.75,225.67,4.433]
[1737972727880,25.80105062,225.82,225.63,3.04]
[1737972728080,25.80105062,225.82,225.64,23.01495062]
[1737972728281,0.03382512,225.76,225.71,0.0317765]
[1737972729774,4.4316,225.75,225.71,0.0317765]
[1737972729980,0.03382512,225.76,225.71,0.0317765]
[1737972730982,4.4318,225.74,225.71,0.0317765]
[1737972731179,0.03382512,225.76,225.71,0.0317765]
[1737972732887,4.4318,225.74,225.71,0.0317765]
[1737972733288,0.03382512,225.76,225.71,0.0317765]
[1737972733488,4.4316,225.75,225.71,0.0317765]
[1737972734483,4.46522512,225.76,225.71,0.0317765]
[1737972734983,0.03382512,225.76,225.71,4.4639765]
[1737972735181,0.03382512,225.76,225.71,0.0317765]
[1737972736085,0.03382512,225.76,225.71,4.4640765]
[1737972736783,0.03382512,225.76,225.71,0.0317765]
[1737972736989,0.03382512,225.76,225.72,2.7809]
[1737972737987,0.03382512,225.76,225.71,4.4640765]
[1737972738192,0.03382512,225.76,225.71,0.0317765]
[1737972739191,0.03382512,225.76,225.72,4.4321]
[1737972739686,0.03382512,225.76,225.71,0.0317765]
[1737972740594,0.03382512,225.76,225.73,4.4319]
[1737972740797,0.03382512,225.76,225.71,0.0317765]
[1737972741294,0.03382512,225.76,225.75,4.4316]
[1737972741891,0.03382512,225.76,225.73,4.4319]
[1737972742090,0.03382512,225.76,225.71,0.0317765]
[1737972742587,4.46522512,225.76,225.72,4.432]
[1737972742786,23.01495062,225.74,225.71,0.0317765]
[1737972743193,4.433,225.68,225.61,5.789]
[1737972743388,23.01495062,225.74,225.61,1.3548]
[1737972743793,23.01495062,225.74,225.64,4.4338]
[1737972744295,23.01495062,225.74,225.61,1.3548]
[1737972744296,0.0291179,225.71,225.67,0.03079451]
[1737972745896,0.0291179,225.71,225.62,4.4341]
[1737972747205,4.433,225.68,225.62,4.4341]
[1737972748006,0.0291179,225.71,225.6,1.321]
[1737972748203,23.01495062,225.74,225.6,1.321]
[1737972748408,0.03286971,225.68,225.6,1.321]
[1737972748807,0.03286971,225.68,225.59,4.4346]
[1737972749109,0.03286971,225.68,225.58,1.4634]
[1737972749504,4.4336,225.65,225.58,5.8982]
[1737972749703,0.03286971,225.68,225.58,5.8982]
[1737972750510,0.03286971,225.68,225.58,1.4634]
[1737972751208,4.4336,225.65,225.59,4.4346]
[1737972751502,0.03286971,225.68,225.58,1.4634]
[1737972751707,4.4338,225.64,225.58,5.8983]
[1737972752204,0.03279771,225.63,225.58,5.8983]
[1737972752401,0.03279771,225.63,225.59,4.4347]
[1737972753215,0.03279771,225.63,225.58,1.4634]
[1737972753805,0.03279771,225.63,225.62,4.4337]
[1737972754002,23.01495062,225.74,225.58,1.4634]
[1737972754310,2.8067,225.8,225.6,23.01495062]
[1737972754510,2.8067,225.8,225.61,3.04]
[1737972754907,4.4316,225.73,225.67,4.4327]
[1737972755303,0.02954858,225.72,225.68,0.03088739]
[1737972756507,4.4323,225.69,225.68,0.03088739]
[1737972759702,0.02954858,225.72,225.68,0.03088739]
[1737972760302,4.4323,225.69,225.68,0.03088739]
[1737972761211,4.4332,225.65,225.58,1.4634]
[1737972761410,23.01495062,225.7,225.58,5.8979]
[1737972762306,23.04343727,225.66,225.62,0.02041815]
[1737972763013,4.4336,225.63,225.62,0.02041815]
[1737972764611,4.4341,225.6,225.52,1.321]
[1737972764813,14.41184943,225.59,225.52,1.321]
[1737972765213,18.84624943,225.59,225.52,4.4355]
[1737972765513,14.41184943,225.59,225.52,4.4355]
[1737972765709,0.03055933,225.58,225.52,4.4355]
[1737972767213,4.46515933,225.58,225.52,4.4355]
[1737972768017,0.03055933,225.58,225.46,2.8569]
[1737972768314,0.03055933,225.58,225.47,14.41184943]
[1737972768514,0.03055933,225.58,225.46,2.8569]
[1737972769108,4.4347,225.57,225.53,4.4355]
[1737972769912,0.03055933,225.58,225.53,4.4355]
[1737972770112,0.03055933,225.58,225.47,14.41184943]
[1737972770815,0.03055933,225.58,225.46,2.8569]
[1737972771214,4.4367,225.47,225.42,14.17558988]
[1737972771414,18.84854943,225.47,225.42,14.17558988]
[1737972771609,14.44427275,225.47,225.42,14.17558988]
[1737972771909,14.44427275,225.47,225.42,4.4376]
[1737972772109,0.03242332,225.47,225.45,4.437]
[1737972772410,0.03242332,225.47,225.41,243.79785979]
[1737972773017,0.03242332,225.47,225.45,4.4369]
[1737972773219,0.03242332,225.47,225.41,243.79785979]
[1737972773619,0.03242332,225.47,225.41,9.74242186]
[1737972773918,0.03242332,225.47,225.46,4.4369]
[1737972774620,36.0,225.57,225.49,4.4361]
[1737972775016,36.0,225.57,225.52,4.4357]
[1737972775320,23.07909194,225.63,225.45,3.04]
[1737972775620,4.4342,225.6,225.53,4.4353]
[1737972775817,0.03001614,225.56,225.53,4.4353]
[1737972776012,0.03001614,225.56,225.52,0.03242332]
[1737972776215,0.03001614,225.56,225.55,4.4351]
[1737972777118,23.07909194,225.67,225.53,1.4188]
[1737972777315,23.07909194,225.71,225.53,1.4188]
[1737972778018,23.07909194,225.71,225.61,4.4339]
[1737972778225,4.4327,225.68,225.53,1.4188]
[1737972778421,4.46081975,225.68,225.64,0.03379888]
[1737972778718,4.4328,225.67,225.53,1.4188]
[1737972778919,0.03100263,225.68,225.64,0.02993389]
[1737972779120,23.07909194,225.71,225.53,1.4188]
[1737972779318,0.02924709,225.68,225.64,0.03036706]
[1737972780518,0.02924709,225.68,225.54,1.3719]
[1737972780821,23.07909194,225.71,225.54,1.3719]
[1737972781024,4.4326,225.68,225.62,4.4336]
[1737972781222,23.07909194,225.71,225.54,1.3719]
[1737972781620,4.4323,225.69,225.62,4.4336]
[1737972781824,0.03119191,225.65,225.62,4.4336]
[1737972783019,0.03119191,225.65,225.64,4.4333]
[1737972783323,36.0,225.77,225.61,1.3578]
[1737972783520,23.07909194,225.79,225.75,4.4312]
[1737972783716,23.07909194,225.79,225.61,1.3578]
[1737972784116,23.07909194,225.79,225.75,4.4312]
[1737972784517,23.11261584,225.79,225.75,0.02968969]
[1737972785625,27.54301584,225.79,225.75,0.02968969]
[1737972786027,0.0335239,225.79,225.75,0.02968969]
[1737972786320,37.4504,225.92,225.75,0.02968969]
[1737972786517,36.0,225.92,225.75,0.02968969]
[1737972786725,36.0,225.92,225.71,25.99439194]
[1737972787023,23.07909194,225.85,225.71,2.9153]
[1737972787526,0.02870256,225.8,225.76,0.03262649]
[1737972787723,0.02870256,225.8,225.78,4.4304]
[1737972787928,23.07909194,225.93,225.76,0.03262649]
[1737972788230,4.4281,225.91,225.81,4.43]
[1737972788427,23.07909194,225.93,225.71,25.99439194]